bitfinex-derivatives/quotes_SOLF0:USTF0_20260118
["timestamp","ask_amount","ask_price","bid_price","bid_amount"]
[1768734536114,5.31198222,142.31,142.22,2.98091225]
[1768734536315,5.31198222,142.3,142.22,2.98091225]
[1768734536504,5.31198222,142.29,142.22,2.98091225]
[1768734536812,5.31198222,142.28,142.22,2.98091225]
[1768734537014,0.19850723,142.32,142.22,2.98091225]
[1768734537313,5.51117858,142.31,142.22,2.98091225]
[1768734537608,5.31213405,142.3,142.22,2.98091225]
[1768734537810,5.31213405,142.29,142.22,2.98091225]
[1768734538010,5.31213405,142.28,142.22,2.98091225]
[1768734538309,0.19904453,142.31,142.22,2.98091225]
[1768734538509,5.3124365,142.3,142.22,2.98091225]
[1768734538711,5.3124365,142.29,142.22,2.98091225]
[1768734539009,5.3124365,142.28,142.22,2.98091225]
[1768734539214,0.19904453,142.31,142.22,2.98091225]
[1768734539508,5.31248114,142.3,142.22,2.98091225]
[1768734539704,5.31248114,142.29,142.22,2.98091225]
[1768734539908,5.31248114,142.28,142.22,2.98091225]
[1768734540102,0.19904453,142.31,142.22,2.98091225]
[1768734540302,5.31248114,142.3,142.22,2.98091225]
[1768734540503,5.31248114,142.29,142.22,2.98091225]
[1768734540703,5.31248114,142.28,142.22,2.98091225]
[1768734540906,0.19904453,142.31,142.22,2.98091225]
[1768734541108,5.31272221,142.3,142.22,2.98091225]
[1768734541318,5.31272221,142.29,142.22,2.98091225]
[1768734541510,5.31272221,142.28,142.22,2.98091225]
[1768734541810,0.19904453,142.31,142.22,2.98091225]
[1768734542008,5.3129024,142.3,142.22,2.98091225]
[1768734542207,5.3129024,142.29,142.22,2.98091225]
[1768734542412,5.3129024,142.28,142.22,2.98091225]
[1768734542711,0.19904453,142.31,142.22,2.98091225]
[1768734542912,5.31287461,142.3,142.22,2.98091225]
[1768734543108,5.31287461,142.29,142.22,2.98091225]
[1768734543406,5.31287461,142.28,142.22,2.98091225]
[1768734543606,0.19904453,142.31,142.22,2.98091225]
[1768734543807,5.31284699,142.3,142.22,2.98091225]
[1768734544012,5.31284699,142.29,142.22,2.98091225]
[1768734544308,5.31284699,142.28,142.22,2.98091225]
[1768734544504,0.19904453,142.31,142.22,2.98091225]
[1768734544703,5.31460458,142.3,142.22,2.98091225]
[1768734544913,5.31460458,142.29,142.22,2.98091225]
[1768734545108,5.31460458,142.28,142.22,2.98091225]
[1768734545308,0.19904453,142.31,142.22,2.98091225]
[1768734545503,5.31446178,142.3,142.22,2.98091225]
[1768734545707,5.31446178,142.29,142.22,2.98091225]
[1768734546003,5.31446178,142.28,142.22,2.98091225]
[1768734546201,0.19904453,142.31,142.22,2.98091225]
[1768734546409,5.31443974,142.3,142.22,2.98091225]
[1768734546609,5.31443974,142.29,142.22,2.98091225]
[1768734546806,5.31443974,142.28,142.22,2.98091225]
[1768734547007,0.19904453,142.31,142.22,2.98091225]
[1768734547206,5.31431039,142.3,142.22,2.98091225]
[1768734547407,5.31431039,142.29,142.22,2.98091225]
[1768734547615,0.19904453,142.31,142.22,2.98091225]
[1768734547815,5.31423395,142.3,142.22,2.98091225]
[1768734548013,5.31423395,142.29,142.22,2.98091225]
[1768734548205,0.19904453,142.31,142.22,2.98091225]
[1768734548411,5.31401945,142.3,142.22,2.98091225]
[1768734548611,5.31401945,142.29,142.22,2.98091225]
[1768734548810,0.19904453,142.31,142.22,2.98091225]
[1768734549011,5.31390068,142.3,142.22,2.98091225]
[1768734549315,5.31390068,142.29,142.22,2.98091225]
[1768734549510,0.19904453,142.31,142.22,2.98091225]
[1768734549712,5.31376925,142.3,142.22,2.98091225]
[1768734550013,5.31376925,142.29,142.22,2.98091225]
[1768734550218,0.20186224,142.3,142.22,2.98091225]
[1768734550408,5.31376461,142.29,142.22,2.98091225]
[1768734550609,0.20186224,142.3,142.22,2.98091225]
[1768734550808,5.31364585,142.29,142.22,2.98091225]
[1768734551008,0.20186224,142.3,142.22,2.98091225]
[1768734551314,5.31357686,142.29,142.22,2.98091225]
[1768734551610,0.20186224,142.3,142.22,2.98091225]
[1768734551814,5.31357032,142.29,142.22,2.98091225]
[1768734552114,0.20186224,142.3,142.22,2.98091225]
[1768734552317,5.31351772,142.29,142.22,2.98091225]
[1768734552512,5.31381319,142.28,142.22,2.98091225]
[1768734552812,0.20186224,142.3,142.22,2.98091225]
[1768734553008,5.31385384,142.29,142.22,2.98091225]
[1768734553209,5.31385384,142.28,142.22,2.98091225]
[1768734553504,0.20186224,142.3,142.22,2.98091225]
[1768734553710,5.31426122,142.29,142.22,2.98091225]
[1768734554013,0.20265174,142.32,142.22,2.98091225]
[1768734554216,5.31433923,142.31,142.22,2.98091225]
[1768734554418,5.31433923,142.3,142.22,2.98091225]
[1768734554622,0.20265174,142.32,142.22,2.98091225]
[1768734554813,5.31436447,142.31,142.22,2.98091225]
[1768734555015,5.31436447,142.3,142.22,2.98091225]
[1768734555214,227.91097649,142.34,142.22,2.98091225]
[1768734555416,5.31392757,142.33,142.22,2.98091225]
[1768734555721,5.31392757,142.32,142.22,2.98091225]
[1768734555915,5.31392757,142.31,142.22,2.98091225]
[1768734556115,0.20301465,142.33,142.22,2.98091225]
[1768734556320,5.31283633,142.32,142.22,2.98091225]
[1768734556516,0.20301465,142.33,142.22,2.98091225]
[1768734556716,5.31286441,142.32,142.22,2.98091225]
[1768734556914,0.20301465,142.33,142.22,2.98091225]
[1768734558626,227.70814081,142.34,142.22,2.98091225]
[1768734558817,0.20352722,142.35,142.22,2.98091225]
[1768734559022,5.30846653,142.34,142.22,2.98091225]
[1768734559222,0.20352722,142.35,142.22,2.98091225]
[1768734559420,5.30649361,142.34,142.22,2.98091225]
[1768734559721,0.20352722,142.35,142.22,2.98091225]
[1768734559916,5.30639485,142.34,142.22,2.98091225]
[1768734560124,0.20352722,142.35,142.22,2.98091225]
[1768734560319,5.30474513,142.34,142.22,2.98091225]
[1768734560625,0.20352722,142.35,142.22,2.98091225]
[1768734560826,5.30474513,142.34,142.22,2.98091225]
[1768734561024,0.20352722,142.35,142.22,2.98091225]
[1768734561224,5.30337557,142.34,142.22,2.98091225]
[1768734561425,0.20352722,142.35,142.22,2.98091225]
[1768734561620,5.30339156,142.34,142.22,2.98091225]
[1768734561820,0.20352722,142.35,142.22,2.98091225]
[1768734562022,5.30348635,142.34,142.22,2.98091225]
[1768734562221,0.20352722,142.35,142.22,2.98091225]
[1768734562428,5.30243877,142.34,142.22,2.98091225]
[1768734562632,0.20352722,142.35,142.22,2.98091225]
[1768734562829,5.30243877,142.34,142.22,2.98091225]
[1768734563027,0.20352722,142.35,142.22,2.98091225]
[1768734596957,5.50579357,142.34,142.22,2.98091225]
[1768734597160,0.20827573,142.34,142.23,3.32312558]
[1768734600062,5.30664774,142.33,142.23,3.32312558]
[1768734600256,0.20827573,142.34,142.23,3.32312558]
[1768734600458,5.30664774,142.33,142.23,3.32312558]
[1768734600655,0.20827573,142.34,142.23,3.32312558]
[1768734600851,5.30664774,142.33,142.23,3.32312558]
[1768734601056,0.20827573,142.34,142.24,3.32312558]
[1768734601257,0.20869637,142.36,142.25,3.32312558]
[1768734601459,5.30772325,142.35,142.25,3.32312558]
[1768734601758,0.20869637,142.36,142.26,3.32312558]
[1768734602061,5.30732697,142.35,142.26,3.32312558]
[1768734602262,0.20869637,142.36,142.26,3.32312558]
[1768734604664,0.20910232,142.44,142.26,3.32312558]
[1768734604864,0.20910232,142.41,142.26,3.32312558]
[1768734605056,0.20910232,142.39,142.26,3.32312558]
[1768734605252,0.20910232,142.37,142.26,3.32312558]
[1768734605457,5.30481156,142.36,142.26,3.32312558]
[1768734605659,0.20910232,142.37,142.26,3.32312558]
[1768734605860,5.30404092,142.36,142.26,3.32312558]
[1768734606055,0.20910232,142.37,142.26,3.32312558]
[1768734606254,5.30403729,142.36,142.26,3.32312558]
[1768734606463,0.20910232,142.37,142.26,3.32312558]
[1768734606758,5.30342441,142.36,142.26,3.32312558]
[1768734606958,0.20910232,142.37,142.26,3.32312558]
[1768734607154,5.30342441,142.36,142.26,3.32312558]
[1768734607363,0.20910232,142.37,142.26,3.32312558]
[1768734607565,5.30294863,142.36,142.26,3.32312558]
[1768734607764,0.20910232,142.37,142.26,3.32312558]
[1768734607972,5.5123185,142.36,142.26,3.32312558]
[1768734608272,0.20936987,142.36,142.26,3.32312558]
[1768734608871,0.20946402,142.34,142.26,3.32312558]
[1768734612365,5.51327294,142.33,142.26,3.32312558]
[1768734612569,0.20972465,142.33,142.26,3.32312558]
[1768734613370,0.20982778,142.31,142.26,3.32312558]
[1768734632583,0.20982778,142.31,142.22,145.34152839]
[1768734632776,0.20982778,142.31,142.23,3.24595689]
[1768734653998,0.21483677,142.34,142.23,3.24595689]
[1768734654198,5.29786544,142.33,142.23,3.24595689]
[1768734654399,0.21483677,142.34,142.23,3.24595689]
[1768734654400,5.29786544,142.32,142.23,3.24595689]
[1768734654698,5.29786544,142.31,142.23,3.24595689]
[1768734654899,0.21487014,142.33,142.23,3.24595689]
[1768734655197,5.29909185,142.32,142.23,3.24595689]
[1768734655392,5.29909185,142.31,142.23,3.24595689]
[1768734655602,0.21487014,142.33,142.23,3.24595689]
[1768734655900,5.30030741,142.32,142.23,3.24595689]
[1768734656100,5.30030741,142.31,142.23,3.24595689]
[1768734656296,0.21487014,142.33,142.23,3.24595689]
[1768734656501,5.30172262,142.32,142.23,3.24595689]
[1768734656701,5.30172262,142.31,142.23,3.24595689]
[1768734656911,0.21487014,142.33,142.23,3.24595689]
[1768734657104,5.30172262,142.32,142.23,3.24595689]
[1768734657300,5.30172262,142.31,142.23,3.24595689]
[1768734657505,0.21487014,142.33,142.23,3.24595689]
[1768734657702,5.30262963,142.32,142.23,3.24595689]
[1768734657902,5.30262963,142.31,142.23,3.24595689]
[1768734658206,0.21487014,142.33,142.23,3.24595689]
[1768734658407,5.30262963,142.32,142.23,3.24595689]
[1768734658598,5.30262963,142.31,142.23,3.24595689]
[1768734658803,0.21487014,142.33,142.23,3.24595689]
[1768734659003,5.30296587,142.32,142.23,3.24595689]
[1768734659203,5.30296587,142.31,142.23,3.24595689]
[1768734659407,0.21487014,142.33,142.23,3.24595689]
[1768734659706,5.30332409,142.32,142.23,3.24595689]
[1768734660004,5.30332409,142.31,142.23,3.24595689]
[1768734660303,0.21487014,142.33,142.23,3.24595689]
[1768734660504,5.30361295,142.32,142.23,3.24595689]
[1768734660704,5.30361295,142.31,142.23,3.24595689]
[1768734661002,0.21487014,142.33,142.23,3.24595689]
[1768734661201,5.30361295,142.32,142.23,3.24595689]
[1768734661406,5.30361295,142.31,142.23,3.24595689]
[1768734661709,0.21487014,142.33,142.23,3.24595689]
[1768734661914,5.51895372,142.32,142.23,3.24595689]
[1768734662210,5.30375856,142.31,142.23,3.24595689]
[1768734662417,0.21519516,142.32,142.23,3.24595689]
[1768734662603,5.30391097,142.31,142.23,3.24595689]
[1768734662905,0.21519516,142.32,142.23,3.24595689]
[1768734663107,5.30391097,142.31,142.23,3.24595689]
[1768734663310,0.21519516,142.32,142.23,3.24595689]
[1768734663510,5.30406286,142.31,142.23,3.24595689]
[1768734663711,0.21519516,142.32,142.23,3.24595689]
[1768734663911,5.30406286,142.31,142.23,3.24595689]
[1768734664112,0.21519516,142.32,142.23,3.24595689]
[1768734664317,5.30415125,142.31,142.23,3.24595689]
[1768734664509,0.21519516,142.32,142.23,3.24595689]
[1768734664808,5.30422177,142.31,142.23,3.24595689]
[1768734665009,0.21519516,142.32,142.23,3.24595689]
[1768734665208,5.30422177,142.31,142.23,3.24595689]
[1768734665409,0.21519516,142.32,142.23,3.24595689]
[1768734665614,5.3043881,142.31,142.23,3.24595689]
[1768734665817,0.21519516,142.32,142.23,3.24595689]
[1768734666113,5.30419846,142.31,142.23,3.24595689]
[1768734666416,0.21519516,142.32,142.23,3.24595689]
[1768734666618,5.51974193,142.31,142.23,3.24595689]
[1768734666817,0.21535247,142.31,142.23,3.24595689]
[1768734672322,5.30572911,142.3,142.23,3.24595689]
[1768734672518,0.21535247,142.31,142.23,3.24595689]
[1768734672822,5.30572911,142.3,142.23,3.24595689]
[1768734673025,0.21535247,142.31,142.23,3.24595689]
[1768734673322,5.30579213,142.3,142.23,3.24595689]
[1768734673616,0.21535247,142.31,142.23,3.24595689]
[1768734673823,5.30619563,142.3,142.23,3.24595689]
[1768734674021,0.21535247,142.31,142.23,3.24595689]
[1768734674224,5.52196823,142.3,142.23,3.24595689]
[1768734674420,0.21569775,142.3,142.23,3.24595689]
[1768734675727,5.52265779,142.29,142.23,3.24595689]
[1768734675929,0.21579767,142.29,142.23,3.24595689]
[1768734676429,5.30610449,142.28,142.23,3.24595689]
[1768734676623,0.21579767,142.29,142.23,3.24595689]
[1768734676814,5.30616265,142.28,142.23,3.24595689]
[1768734677020,0.21579767,142.29,142.23,3.24595689]
[1768734677327,5.30547999,142.28,142.23,3.24595689]
[1768734677528,0.21579767,142.29,142.23,3.24595689]
[1768734677731,5.30553877,142.28,142.23,3.24595689]
[1768734677925,0.21579767,142.29,142.23,3.24595689]
[1768734678128,5.30549137,142.28,142.23,3.24595689]
[1768734678318,0.21579767,142.29,142.23,3.24595689]
[1768734678523,5.3047284,142.28,142.23,3.24595689]
[1768734678718,0.21579767,142.29,142.23,3.24595689]
[1768734678930,5.3047284,142.28,142.23,3.24595689]
[1768734679128,0.21579767,142.29,142.23,3.24595689]
[1768734679331,5.3040588,142.28,142.23,3.24595689]
[1768734679529,0.21579767,142.29,142.23,3.24595689]
[1768734679733,5.30396223,142.28,142.23,3.24595689]
[1768734679934,0.21579767,142.29,142.23,3.24595689]
[1768734680125,5.30396223,142.28,142.23,3.24595689]
[1768734680429,0.21579767,142.29,142.23,3.24595689]
[1768734680733,5.30329897,142.28,142.23,3.24595689]
[1768734680925,0.21579767,142.29,142.23,3.24595689]
[1768734681122,5.30329897,142.28,142.23,3.24595689]
[1768734681325,0.21579767,142.29,142.23,3.24595689]
[1768734681527,5.30270023,142.28,142.23,3.24595689]
[1768734681835,0.21579767,142.29,142.23,3.24595689]
[1768734682026,5.30270023,142.28,142.23,3.24595689]
[1768734682322,0.21579767,142.29,142.23,3.24595689]
[1768734682520,5.30215673,142.28,142.23,3.24595689]
[1768734682721,0.21579767,142.29,142.23,3.24595689]
[1768734682935,5.30215768,142.28,142.23,3.24595689]
[1768734683232,0.21579767,142.29,142.23,3.24595689]
[1768734683434,5.30178301,142.28,142.23,3.24595689]
[1768734683632,0.21579767,142.29,142.23,3.24595689]
[1768734683833,5.30166105,142.28,142.23,3.24595689]
[1768734684033,0.21579767,142.29,142.23,3.24595689]
[1768734684236,5.29965596,142.28,142.23,3.24595689]
[1768734684434,0.21579767,142.29,142.23,3.24595689]
[1768734684640,5.29952802,142.28,142.23,3.24595689]
[1768734684930,0.21579767,142.29,142.23,3.24595689]
[1768734685135,5.29952802,142.28,142.23,3.24595689]
[1768734685332,0.21579767,142.29,142.23,3.24595689]
[1768734685530,5.29910687,142.28,142.23,3.24595689]
[1768734685725,0.21579767,142.29,142.23,3.24595689]
[1768734685931,5.29910687,142.28,142.23,3.24595689]
[1768734686130,0.21579767,142.29,142.23,3.24595689]
[1768734686342,5.29885541,142.28,142.23,3.24595689]
[1768734686525,0.21579767,142.29,142.23,3.24595689]
[1768734686728,5.29871795,142.28,142.23,3.24595689]
[1768734686925,0.21579767,142.29,142.23,3.24595689]
[1768734687129,5.29871795,142.28,142.23,3.24595689]
[1768734687424,0.21579767,142.29,142.23,3.24595689]
[1768734687939,5.29831089,142.28,142.23,3.24595689]
[1768734688134,0.21579767,142.29,142.23,3.24595689]
[1768734688335,5.29799076,142.28,142.23,3.24595689]
[1768734688639,0.21579767,142.29,142.23,3.24595689]
[1768734688841,5.29784527,142.28,142.23,3.24595689]
[1768734689136,0.21579767,142.29,142.23,3.24595689]
[1768734689330,5.29756696,142.28,142.23,3.24595689]
[1768734689526,0.21579767,142.29,142.23,3.24595689]
[1768734689730,5.29741796,142.28,142.23,3.24595689]
[1768734689926,0.21579767,142.29,142.23,3.24595689]
[1768734690130,5.29741796,142.28,142.23,3.24595689]
[1768734690330,0.21579767,142.29,142.23,3.24595689]
[1768734690538,5.29702537,142.28,142.23,3.24595689]
[1768734690736,0.21579767,142.29,142.23,3.24595689]
[1768734691037,5.29702537,142.28,142.23,3.24595689]
[1768734691236,0.21579767,142.29,142.23,3.24595689]
[1768734691441,5.29666459,142.28,142.23,3.24595689]
[1768734691629,0.21579767,142.29,142.23,3.24595689]
[1768734691926,5.29666459,142.28,142.23,3.24595689]
[1768734692132,0.21579767,142.29,142.23,3.24595689]
[1768734692327,5.29648821,142.28,142.23,3.24595689]
[1768734692534,0.21579767,142.29,142.23,3.24595689]
[1768734692735,5.29632323,142.28,142.23,3.24595689]
[1768734692932,0.21579767,142.29,142.23,3.24595689]
[1768734693134,5.29632323,142.28,142.23,3.24595689]
[1768734693332,0.21579767,142.29,142.23,3.24595689]
[1768734693534,5.29600548,142.28,142.23,3.24595689]
[1768734693739,0.21579767,142.29,142.23,3.24595689]
[1768734693940,5.29600548,142.28,142.23,3.24595689]
[1768734694139,0.21579767,142.29,142.23,3.24595689]
[1768734694327,5.2958795,142.28,142.23,3.24595689]
[1768734694533,0.21579767,142.29,142.23,3.24595689]
[1768734694734,5.29570849,142.28,142.23,3.24595689]
[1768734694943,0.21579767,142.29,142.23,3.24595689]
[1768734695243,5.29570849,142.28,142.23,3.24595689]
[1768734695441,0.21579767,142.29,142.23,3.24595689]
[1768734704350,5.29555107,142.28,142.23,3.24595689]
[1768734704542,0.21579767,142.29,142.23,3.24595689]
[1768734704741,5.29555107,142.28,142.23,3.24595689]
[1768734705042,0.21579767,142.29,142.23,3.24595689]
[1768734705240,5.29560941,142.28,142.23,3.24595689]
[1768734705540,0.21579767,142.29,142.23,3.24595689]
[1768734705742,5.29560941,142.28,142.23,3.24595689]
[1768734706039,0.21579767,142.29,142.23,3.24595689]
[1768734706244,5.29567025,142.28,142.23,3.24595689]
[1768734706444,0.21579767,142.29,142.23,3.24595689]
[1768734706645,5.29589429,142.28,142.23,3.24595689]
[1768734706846,0.21579767,142.29,142.23,3.24595689]
[1768734707048,5.29595338,142.28,142.23,3.24595689]
[1768734707246,0.21579767,142.29,142.23,3.24595689]
[1768734707450,5.29748174,142.28,142.23,3.24595689]
[1768734707749,0.21579767,142.29,142.23,3.24595689]
[1768734708048,5.29748532,142.28,142.23,3.24595689]
[1768734708249,0.21579767,142.29,142.23,3.24595689]
[1768734708451,5.29786644,142.28,142.23,3.24595689]
[1768734708650,0.21579767,142.29,142.23,3.24595689]
[1768734708949,5.29786644,142.28,142.23,3.24595689]
[1768734709149,0.21579767,142.29,142.23,3.24595689]
[1768734709359,5.29830225,142.28,142.23,3.24595689]
[1768734709558,0.21579767,142.29,142.23,3.24595689]
[1768734709759,5.29830225,142.28,142.23,3.24595689]
[1768734710058,0.21579767,142.29,142.23,3.24595689]
[1768734710260,5.29879819,142.28,142.23,3.24595689]
[1768734710558,0.21579767,142.29,142.23,3.24595689]
[1768734710754,5.29879819,142.28,142.23,3.24595689]
[1768734710954,0.21579767,142.29,142.23,3.24595689]
[1768734711156,5.29879819,142.28,142.23,3.24595689]
[1768734711454,0.21579767,142.29,142.23,3.24595689]
[1768734711655,5.29954709,142.28,142.23,3.24595689]
[1768734711856,0.21579767,142.29,142.23,3.24595689]
[1768734712057,5.29954709,142.28,142.23,3.24595689]
[1768734712256,0.21579767,142.29,142.23,3.24595689]
[1768734712457,5.30011968,142.28,142.23,3.24595689]
[1768734712658,0.21579767,142.29,142.23,3.24595689]
[1768734712858,5.30011968,142.28,142.23,3.24595689]
[1768734713166,0.21579767,142.29,142.23,3.24595689]
[1768734713357,5.30077034,142.28,142.23,3.24595689]
[1768734713659,0.21579767,142.29,142.23,3.24595689]
[1768734713962,5.30077034,142.28,142.23,3.24595689]
[1768734714258,0.21579767,142.29,142.23,3.24595689]
[1768734714465,5.3001235,142.28,142.23,3.24595689]
[1768734714763,0.21579767,142.29,142.23,3.24595689]
[1768734714957,5.3001235,142.28,142.23,3.24595689]
[1768734715166,0.21579767,142.29,142.23,3.24595689]
[1768734715353,5.30098049,142.28,142.23,3.24595689]
[1768734715559,0.21579767,142.29,142.23,3.24595689]
[1768734715759,5.30098049,142.28,142.23,3.24595689]
[1768734716057,0.21579767,142.29,142.23,3.24595689]
[1768734716258,5.30198572,142.28,142.23,3.24595689]
[1768734716460,0.21579767,142.29,142.23,3.24595689]
[1768734716657,5.30198572,142.28,142.23,3.24595689]
[1768734716853,0.21579767,142.29,142.23,3.24595689]
[1768734717164,5.30198572,142.28,142.23,3.24595689]
[1768734717367,0.21579767,142.29,142.23,3.24595689]
[1768734717558,5.30319956,142.28,142.23,3.24595689]
[1768734717758,0.21579767,142.29,142.23,3.24595689]
[1768734717964,5.30319956,142.28,142.23,3.24595689]
[1768734718165,5.304751,142.27,142.23,3.24595689]
[1768734718359,0.21579767,142.29,142.23,3.24595689]
[1768734718554,5.304751,142.28,142.23,3.24595689]
[1768734718759,5.304751,142.27,142.23,3.24595689]
[1768734718956,0.21556335,142.36,142.23,3.24595689]
[1768734719160,0.21556335,142.34,142.23,3.24595689]
[1768734719360,5.30461126,142.33,142.23,3.24595689]
[1768734719561,5.30461126,142.32,142.23,3.24595689]
[1768734719761,5.30461126,142.31,142.23,3.24595689]
[1768734720068,5.30461126,142.3,142.23,3.24595689]
[1768734720366,0.21556335,142.34,142.23,3.24595689]
[1768734720568,5.30685029,142.33,142.23,3.24595689]
[1768734720768,5.30685029,142.32,142.23,3.24595689]
[1768734721068,5.30685029,142.31,142.23,3.24595689]
[1768734721370,5.30685029,142.3,142.23,3.24595689]
[1768734721570,0.21556335,142.34,142.23,3.24595689]
[1768734721868,5.3044873,142.33,142.23,3.24595689]
[1768734722064,5.3044873,142.32,142.23,3.24595689]
[1768734722260,3.40240308,142.36,142.23,3.24595689]
[1768734734279,3.40240308,142.34,142.23,3.24595689]
[1768734747786,21.1,142.4,142.23,3.24595689]
[1768734747982,3.42775949,142.38,142.23,3.24595689]
[1768734748179,8.67978012,142.37,142.23,3.24595689]
[1768734748488,5.25202063,142.36,142.23,3.24595689]
[1768734748688,3.42775949,142.37,142.23,3.24595689]
[1768734748885,8.67884618,142.36,142.23,3.24595689]
[1768734749086,3.42775949,142.36,142.23,3.24595689]
[1768734751389,3.42775949,142.36,142.24,3.40538251]
[1768734751588,3.42775949,142.36,142.25,3.40538251]
[1768734785220,3.42775949,142.36,142.26,3.43620903]
[1768734792229,3.42775949,142.36,142.27,3.43620903]
[1768734805431,1.22272584,142.45,142.27,3.43620903]
[1768734805635,21.1,142.43,142.27,3.43620903]
[1768734805936,1.22272584,142.45,142.27,3.43620903]
[1768734805937,26.36763328,142.42,142.27,3.43620903]
[1768734806135,5.26763328,142.41,142.27,3.43620903]
[1768734806336,5.26763328,142.4,142.27,3.43620903]
[1768734806537,5.26763328,142.39,142.27,3.43620903]
[1768734806729,5.26763328,142.38,142.27,3.43620903]
[1768734806929,21.1,142.43,142.27,3.43620903]
[1768734807130,26.36770064,142.42,142.27,3.43620903]
[1768734807430,2.26432751,142.4,142.28,3.50549315]
[1768734807630,2.26432751,142.38,142.28,3.50549315]
[1768734841259,2.21422172,142.36,142.28,3.50549315]
[1768734841453,1.22272584,142.45,142.28,3.50549315]
[1768734841653,21.1,142.43,142.28,3.50549315]
[1768734841849,26.36917807,142.42,142.28,3.50549315]
[1768734842050,5.26917807,142.41,142.28,3.50549315]
[1768734842254,5.26917807,142.4,142.28,3.50549315]
[1768734842454,5.26917807,142.39,142.28,3.50549315]
[1768734842750,5.26917807,142.38,142.28,3.50549315]
[1768734842949,5.26917807,142.37,142.28,3.50549315]
[1768734843154,21.1,142.43,142.28,3.50549315]
[1768734843353,26.36953039,142.42,142.28,3.50549315]
[1768734843561,5.26953039,142.41,142.28,3.50549315]
[1768734843861,5.26953039,142.4,142.28,3.50549315]
[1768734844057,5.26953039,142.39,142.28,3.50549315]
[1768734844254,5.26953039,142.38,142.28,3.50549315]
[1768734844459,5.26953039,142.37,142.28,3.50549315]
[1768734844658,21.1,142.43,142.28,3.50549315]
[1768734844849,26.36973178,142.42,142.28,3.50549315]
[1768734845052,5.26973178,142.41,142.28,3.50549315]
[1768734845261,5.26973178,142.4,142.28,3.50549315]
[1768734845461,21.1,142.42,142.28,3.50549315]
[1768734845462,5.26973178,142.39,142.28,3.50549315]
[1768734845761,5.26973178,142.38,142.28,3.50549315]
[1768734845961,5.26973178,142.37,142.28,3.50549315]
[1768734846161,21.1,142.43,142.28,3.50549315]
[1768734846363,26.37020002,142.42,142.28,3.50549315]
[1768734846558,5.27020002,142.41,142.28,3.50549315]
[1768734846859,0.02303536,142.39,142.28,3.50549315]
[1768734847054,0.02303536,142.37,142.28,3.50549315]
[1768734941833,0.02303536,142.37,142.28,16.63781378]
[1768734942035,22.32257549,142.47,142.29,3.5531617]
[1768734942230,21.1,142.45,142.3,3.5531617]
[1768734942433,21.1,142.43,142.3,3.5531617]
[1768734942631,5.27275182,142.42,142.3,3.5531617]
[1768734942934,5.27275182,142.41,142.3,3.5531617]
[1768734943134,5.27275182,142.4,142.3,3.5531617]
[1768734943336,5.27275182,142.39,142.3,3.5531617]
[1768734943536,5.27275182,142.38,142.3,3.5531617]
[1768734943739,21.1,142.46,142.3,3.5531617]
[1768734943941,0.22147824,142.43,142.3,3.5531617]
[1768734944237,0.22147824,142.41,142.3,3.5531617]
[1768734944438,5.49253253,142.4,142.3,3.5531617]
[1768734944639,5.27105429,142.39,142.3,3.5531617]
[1768734944831,5.27105429,142.38,142.3,3.5531617]
[1768734945031,0.22147824,142.4,142.3,3.5531617]
[1768734945231,5.26978846,142.39,142.3,3.5531617]
[1768734945526,5.26978846,142.38,142.3,3.5531617]
[1768734945731,0.22147824,142.4,142.3,3.5531617]
[1768734946035,5.26969722,142.39,142.3,3.5531617]
[1768734946227,0.22147824,142.4,142.3,3.5531617]
[1768734946432,5.26911915,142.39,142.3,3.5531617]
[1768734946633,0.22147824,142.4,142.3,3.5531617]
[1768734946832,5.26911915,142.39,142.3,3.5531617]
[1768734947131,0.22147824,142.4,142.3,3.5531617]
[1768734947331,5.26864116,142.39,142.3,3.5531617]
[1768734947532,0.22147824,142.4,142.3,3.5531617]
[1768734947733,5.26864116,142.39,142.3,3.5531617]
[1768734947932,0.22147824,142.4,142.3,3.5531617]
[1768734948135,5.26864116,142.39,142.3,3.5531617]
[1768734948334,0.22147824,142.4,142.3,3.5531617]
[1768734948535,5.26824073,142.39,142.3,3.5531617]
[1768734948741,0.22147824,142.4,142.3,3.5531617]
[1768734948943,5.26824073,142.39,142.3,3.5531617]
[1768734949130,0.22147824,142.4,142.3,3.5531617]
[1768734949335,5.26789053,142.39,142.3,3.5531617]
[1768734949530,0.22147824,142.4,142.3,3.5531617]
[1768734949744,5.26789053,142.39,142.3,3.5531617]
[1768734949944,0.22147824,142.4,142.3,3.5531617]
[1768734950133,5.26789053,142.39,142.3,3.5531617]
[1768734950337,0.22147824,142.4,142.3,3.5531617]
[1768734950635,5.26757876,142.39,142.3,3.5531617]
[1768734950837,0.22147824,142.4,142.3,3.5531617]
[1768734951044,5.26757876,142.39,142.3,3.5531617]
[1768734951236,0.22147824,142.4,142.3,3.5531617]
[1768734951439,5.26729265,142.39,142.3,3.5531617]
[1768734951638,0.22147824,142.4,142.3,3.5531617]
[1768734951937,5.26729265,142.39,142.3,3.5531617]
[1768734952134,0.22147824,142.4,142.3,3.5531617]
[1768734952340,5.26703912,142.39,142.3,3.5531617]
[1768734952632,0.22147824,142.4,142.3,3.5531617]
[1768734952836,5.26703912,142.39,142.3,3.5531617]
[1768734953035,0.22147824,142.4,142.3,3.5531617]
[1768734953232,5.26681419,142.39,142.3,3.5531617]